fUST/lending_fUST_20251021
["ID","MTS","AMOUNT","RATE_DAILY","PERIOD"]
[391981401,1761053433462,-663.93287602,0.00033156,2]
[391981402,1761053433472,-500.0,0.00033209,2]
[391981403,1761053433482,-8864.95293647,0.00033228,2]
[391981404,1761053433492,-152.47,0.00033257,60]
[391981405,1761053433502,-2070.16096727,0.00033257,2]
[391981406,1761053433511,-672.66,0.00033266,60]
[391981407,1761053433521,-250.0,0.00033304,2]
[391981408,1761053433531,-890.25,0.00033308,3]
[391981409,1761053433541,-52170.6129296,0.00033318,2]
[391981410,1761053433551,-497.47013333,0.00033319,2]
[391981411,1761053433560,-188.2921001,0.00033327,7]
[391981412,1761053433570,-355.63868615,0.00033328,120]
[391981413,1761053433579,-500.0,0.00033328,120]
[391981414,1761053433589,-500.0,0.00033328,120]
[391981415,1761053433598,-500.0,0.00033328,120]
[391981416,1761053433607,-500.0,0.00033328,120]
[391981417,1761053433616,-500.0,0.00033328,120]
[391981418,1761053433626,-370000.0,0.00033328,2]
[391981419,1761053433635,-500.0,0.00033328,30]
[391981420,1761053433648,-152.47,0.00033357,60]
[391981421,1761053433658,-672.66,0.00033366,60]
[391981422,1761053433667,-500.0,0.00033373,4]
[391981423,1761053433676,-1814.05326908,0.000334,120]
[391981424,1761053433686,-1252.39,0.000334,14]
[391981425,1761053433695,-188.27459273,0.000334,120]
[391981426,1761053433704,-433.90871992,0.000334,120]
[391981427,1761053433714,-254.87804065,0.000334,120]
[391981428,1761053433723,-181.09763267,0.000334,120]
[391981429,1761053433733,-1612.77578802,0.000334,120]
[391981430,1761053433742,-192.76534299,0.000334,120]
[391981431,1761053433752,-548.69900351,0.000334,120]
[391981432,1761053433761,-545.96943703,0.000334,120]
[391981433,1761053433771,-497.47013333,0.00033419,2]
[391981434,1761053433781,-152.47,0.00033457,60]
[391981435,1761053433790,-672.66,0.00033466,60]
[391981436,1761053433804,-150.0,0.00033478,2]
[391981437,1761053433814,-497.47013333,0.00033519,2]
[391981438,1761053433823,-152.47,0.00033557,60]
[391981439,1761053433832,-2999.0,0.00033561,120]
[391981440,1761053433842,-672.66,0.00033566,60]
[391981441,1761053433852,-500.0,0.00033602,30]
[391981442,1761053433861,-497.47013333,0.00033619,2]
[391981443,1761053433871,-185.935621,0.00033646,2]
[391981444,1761053433880,-183.687843,0.00033646,2]
[391981445,1761053433890,-152.47,0.00033657,60]
[391981446,1761053433899,-672.66,0.00033666,60]
[391981447,1761053433908,-6521.3266162,0.0003369,2]
[391981448,1761053433917,-315.49257665,0.00033699,2]
[391981449,1761053433927,-1361.56,0.000337,7]
[391981450,1761053433936,-688.49839244,0.00033704,2]
[391981451,1761053433945,-497.47013333,0.00033719,2]
[391981452,1761053433955,-185.935621,0.00033746,20]
[391981453,1761053433967,-183.687843,0.00033746,20]
[391981454,1761053433976,-152.47,0.00033757,60]
[391981455,1761053433985,-672.66,0.00033766,60]
[391981456,1761053433995,-151.0,0.000338,12]
[391981457,1761053434004,-497.47013333,0.00033819,2]
[391981458,1761053434013,-152.47,0.00033857,60]
[391981459,1761053434023,-672.66,0.00033866,60]
[391981460,1761053434032,-500.0,0.00033876,30]
[391981461,1761053434045,-8864.95293646,0.00033913,2]
[391981462,1761053434056,-497.47013333,0.00033919,2]
[391981463,1761053434065,-1000.0,0.00033921,4]
[391981464,1761053434075,-152.47,0.00033957,60]
[391981465,1761053434084,-672.66,0.00033966,60]
[391981466,1761053434094,-5057.91863688,0.0003398,2]
[391981467,1761053434104,-569.01362876,0.0003399,60]
[391981468,1761053434114,-216.0,0.00034,120]
[391981469,1761053434124,-497.47013333,0.00034019,2]
[391981470,1761053434135,-152.47,0.00034057,60]
[391981471,1761053434149,-672.66,0.00034066,60]
[391981472,1761053434159,-151.0,0.000341,19]
[391981473,1761053434169,-497.47013333,0.00034119,2]
[391981474,1761053434178,-500.0,0.0003415,30]
[391981475,1761053434187,-152.47,0.00034157,60]
[391981476,1761053434196,-672.66,0.00034166,60]
[391981477,1761053434206,-823.0,0.00034227,2]
[391981478,1761053434215,-247.75451626,0.00034246,120]
[391981479,1761053434225,-713.97283296,0.00034252,2]
[391981480,1761053434235,-152.47,0.00034257,60]
[391981481,1761053434244,-672.66,0.00034266,60]
[391981482,1761053434254,-151.0,0.000343,20]
[391981483,1761053434264,-152.47,0.00034357,60]
[391981484,1761053434274,-672.66,0.00034366,60]
[391981485,1761053434284,-1814.05326908,0.000344,120]
[391981486,1761053434297,-433.90871992,0.000344,120]
[391981487,1761053434306,-254.87804065,0.000344,120]
[391981488,1761053434316,-181.09763267,0.000344,120]
[391981489,1761053434325,-548.69900351,0.000344,120]
[391981490,1761053434334,-192.76534299,0.000344,120]
[391981491,1761053434343,-545.96943703,0.000344,120]
[391981492,1761053434352,-1612.77578802,0.000344,120]
[391981493,1761053434362,-151.0,0.000344,19]
[391981494,1761053434372,-500.0,0.00034424,30]
[391981495,1761053434382,-152.47,0.00034457,60]
[391981496,1761053434392,-672.66,0.00034466,60]
[391981497,1761053434402,-1000.0,0.000345,15]
[391981498,1761053434412,-1400.0,0.000345,14]
[391981499,1761053434421,-152.47,0.00034557,60]
[391981500,1761053434431,-672.66,0.00034566,60]
[391981501,1761053434440,-6497.8044297,0.00034597,2]
[391981502,1761053434450,-8864.95293646,0.00034597,2]
[391981503,1761053434460,-151.0,0.000346,18]
[391981504,1761053434470,-151.0,0.000346,19]
[391981505,1761053434480,-300.0,0.000346,14]
[391981506,1761053434489,-252.47,0.000346,14]
[391981507,1761053434499,-990.0,0.000346,2]
[391981508,1761053434508,-990.0,0.000346,3]
[391981509,1761053434518,-152.47,0.00034657,60]
[391981510,1761053434527,-672.66,0.00034666,60]
[391981511,1761053434537,-200.0,0.00034685,120]
[391981512,1761053434552,-151.0,0.00034689,14]
[391981513,1761053434562,-3172.0,0.00034689,2]
[391981514,1761053434572,-35399.08474419,0.00034697,4]
[391981515,1761053434583,-500.0,0.00034697,30]
[391981516,1761053434594,-540.0,0.00034697,30]
[391981517,1761053434604,-155.0,0.00034697,2]
[391981518,1761053434615,-150.0,0.00034697,2]
[391981519,1761053434625,-500.0,0.00034697,7]
[391981520,1761053434636,-500.0,0.00034697,7]
[391981521,1761053434646,-500.0,0.00034697,7]
[391981522,1761053434656,-500.0,0.00034697,7]
[391981523,1761053434666,-500.0,0.00034697,7]
[391981524,1761053434675,-500.0,0.00034697,7]
[391981525,1761053434685,-500.0,0.00034697,7]
[391981526,1761053434696,-500.0,0.00034697,7]
[391981527,1761053434706,-500.0,0.00034697,7]
[391981528,1761053434715,-500.0,0.00034697,7]
[391981529,1761053434725,-500.0,0.00034697,7]
[391981530,1761053434735,-500.0,0.00034697,7]
[391981531,1761053434745,-500.0,0.00034697,7]
[391981532,1761053434755,-500.0,0.00034697,2]
[391981533,1761053434764,-500.0,0.00034697,2]
[391981534,1761053434773,-500.0,0.00034697,2]
[391981535,1761053434783,-157.35090723,0.00034697,2]
[391981536,1761053434797,-150.0,0.00034697,30]
[391981537,1761053434807,-250.0,0.00034697,30]
[391981538,1761053434817,-250.0,0.00034697,30]
[391981539,1761053434827,-250.0,0.00034697,30]
[391981540,1761053434836,-274.845508,0.00034697,30]
[391981541,1761053434846,-250.0,0.00034697,10]
[391981542,1761053434857,-250.0,0.00034697,10]
[391981543,1761053434866,-250.0,0.00034697,10]
[391981544,1761053434876,-250.0,0.00034697,10]
[391981545,1761053434885,-250.501735,0.00034697,10]
[391981546,1761053434894,-1528572.84342916,0.00034697,20]
[391981547,1761053434907,-8179.78876452,0.00034697,20]
[391981579,1761053440620,-2117.44154299,0.00024953,2]
[391981580,1761053440677,-2882.55845701,0.00024953,2]
[391981581,1761053440687,-500.0,0.00030973,5]
[391981582,1761053440697,-500.0,0.00030973,5]
[391981583,1761053440706,-1000.0,0.00031521,5]
[391981584,1761053440715,-1000.0,0.00031521,5]
[391981585,1761053440724,-1500.0,0.00032068,5]
[391981586,1761053440734,-1144.2197382,0.00032068,5]
[391981587,1761053440744,-2000.0,0.00032616,5]
[391981588,1761053440754,-200.0,0.000329,120]
[391981589,1761053440763,-2500.0,0.00033164,5]
[391981590,1761053440772,-3000.0,0.00033712,5]
[391981591,1761053440782,-3500.0,0.0003426,5]
[391981592,1761053440792,-3005.59802468,0.000346,5]
[391981593,1761053440803,-1778924.382173,0.00034697,20]
[391981594,1761053440812,-477.79534367,0.00034697,2]
[391981595,1761053440821,-91493.16729503,0.00034697,2]
[391981596,1761053440840,-300.0,0.00034697,2]
[391981597,1761053440851,-22718.3668233,0.00034697,2]
[391981598,1761053440861,-3893.10441954,0.00034697,2]
[391981599,1761053440871,-812.25655075,0.00034697,2]
[391981600,1761053440880,-877.33712686,0.00034697,32]
[391981601,1761053440890,-259.01545591,0.00034697,2]
[391981602,1761053440899,-297.81392319,0.00034697,2]
[391981603,1761053440908,-328.0399052,0.00034697,2]
[391981604,1761053440918,-292.76778766,0.00034697,2]
[391981605,1761053440927,-51845.21832731,0.00034697,2]
[391981606,1761053440936,-639.2462548,0.00034697,2]
[391981607,1761053440946,-1366.12565921,0.00034697,2]
[391981608,1761053440959,-157.11266514,0.00034697,2]
[391981609,1761053440969,-419.0517073,0.00034697,2]
[391981610,1761053440979,-6312.50775792,0.00034697,2]
[391981611,1761053440988,-158.11512826,0.00034697,2]
[391981612,1761053440999,-31968.82404711,0.00034697,2]
[391981613,1761053441009,-242.10386531,0.00034697,10]
[391981614,1761053441019,-30537.43731561,0.00034697,2]
[391981615,1761053441028,-189.75840641,0.00034697,2]
[391981616,1761053441039,-1401.27860835,0.00034697,2]
[391981617,1761053441053,-5913.99073976,0.00034697,2]
[391981618,1761053441063,-10714.04945435,0.00034697,2]
[391981619,1761053441073,-203.58778624,0.00034697,2]
[391981620,1761053441083,-653.17084423,0.00034697,2]
[391981621,1761053441093,-2920.0,0.00034697,2]
[391981622,1761053441102,-10878.82874006,0.00034697,2]
[391981623,1761053441112,-1447.05785181,0.00034697,2]
[391981624,1761053441121,-386.01933489,0.00034697,2]
[391981625,1761053441131,-201.95964407,0.00034697,2]
[391981626,1761053441140,-457.8734925,0.00034697,30]
[391981627,1761053441150,-3156.53541242,0.00034697,2]
[391981628,1761053441161,-300.0,0.00034697,30]
[391981629,1761053441171,-167.07748782,0.00034697,2]
[391981630,1761053441180,-365.74192553,0.00034697,2]
[391981631,1761053441189,-150.79845362,0.00034697,2]
[391981632,1761053441199,-100545.85651647,0.00034697,2]
[391981633,1761053441208,-259.32358751,0.00034697,2]
[391981634,1761053441218,-3777.11990216,0.00034697,2]
[391981635,1761053441227,-635.71448984,0.00034697,2]
[391981636,1761053441237,-17481.22242505,0.00034697,2]
[391981637,1761053441246,-1999.79221574,0.00034697,2]
[391981638,1761053441256,-1000.0,0.00034697,14]
[391981639,1761053441265,-500.0,0.00034698,30]
[391981640,1761053441276,-904.6878942,0.000347,30]
[391981641,1761053441286,-5000.0,0.00034706,4]
[391981642,1761053441295,-152.47,0.00034757,60]
[391981643,1761053441311,-672.66,0.00034766,60]
[391981644,1761053441321,-500.0,0.00034773,2]
[391981645,1761053441331,-503.36300446,0.00034773,5]
[391981646,1761053441341,-1606.06,0.000348,14]
[391981647,1761053441350,-374.55638,0.000348,120]
[391981648,1761053441360,-740.38982778,0.000348,2]
[391981649,1761053441369,-4000.0,0.00034808,5]
[391981650,1761053441379,-1444.0,0.00034849,120]
[391981651,1761053441389,-152.47,0.00034857,60]
[391981652,1761053441399,-6521.3266162,0.00034863,2]
[391981653,1761053441409,-672.66,0.00034866,60]
[391981654,1761053441418,-4067.11001093,0.00034873,2]
[391981655,1761053441427,-4205.0,0.00034901,2]
[391981656,1761053441436,-152.47,0.00034957,60]
[391981657,1761053441446,-672.66,0.00034966,60]
[391981658,1761053441455,-500.0,0.00034972,30]
[391981659,1761053441465,-575.69,0.00035,2]
[391981660,1761053441474,-999.99,0.00035,2]
[391981661,1761053441485,-999.99,0.00035,2]
[391981662,1761053441494,-1000.0,0.00035,2]
[391981663,1761053441503,-1000.0,0.00035,2]
[391981664,1761053441513,-1361.56,0.00035,7]
[391981665,1761053441523,-10680.54958799,0.00035,2]
[391981666,1761053441532,-655.74705258,0.00035,2]
[391981667,1761053441541,-25515.4010268,0.00035,2]
[391981668,1761053441553,-2070.16096724,0.00035018,2]
[391981669,1761053441563,-152.47,0.00035057,60]
[391981670,1761053441573,-672.66,0.00035066,60]
[391981671,1761053441583,-218.93,0.00035072,2]
[391981672,1761053441592,-2164.0,0.00035151,2]
[391981673,1761053441603,-152.47,0.00035157,60]
[391981674,1761053441613,-672.66,0.00035166,60]
[391981675,1761053441623,-1252.39,0.000352,14]
[391981676,1761053441633,-576.91,0.00035246,30]
[391981677,1761053441643,-152.47,0.00035257,60]
[391981678,1761053441652,-403.05172659,0.0003526,7]
[391981679,1761053441663,-672.66,0.00035266,60]
[391981680,1761053441673,-1000.0,0.000353,2]
[391981681,1761053441683,-611.41961782,0.00035321,2]
[391981682,1761053441693,-718.83875292,0.00035333,2]
[391981683,1761053441827,-767.7842514,0.00035348,2]
[391981684,1761053441837,-4500.0,0.00035356,5]
[391981685,1761053441847,-152.47,0.00035357,60]
[391981686,1761053441859,-672.66,0.00035366,60]
[391981687,1761053441869,-1814.05326908,0.000354,120]
[391981688,1761053441879,-151.0,0.000354,16]
[391981689,1761053441890,-433.90871992,0.000354,120]
[391981690,1761053441899,-181.09763267,0.000354,120]
[391981691,1761053441911,-254.87804065,0.000354,120]
[391981692,1761053441921,-548.69900351,0.000354,120]
[391981693,1761053441931,-1612.77578802,0.000354,120]
[391981694,1761053441941,-545.96943703,0.000354,120]
[391981695,1761053441951,-152.476,0.00035457,60]
[391981696,1761053441964,-150.0,0.00035459,60]
[391981697,1761053441974,-500.0,0.00035459,7]
[391981698,1761053441984,-672.66,0.00035466,60]
[391981699,1761053441997,-185.935621,0.000355,60]
[391981700,1761053442008,-183.687843,0.000355,60]
[391981701,1761053442017,-672.66,0.00035566,60]
[391981702,1761053442027,-1000.0,0.000356,2]
[391981703,1761053442036,-672.66,0.00035666,60]
[391981704,1761053442048,-151.145192,0.0003575,60]
[391981705,1761053442059,-185.935621,0.0003575,60]
[391981706,1761053442069,-183.687843,0.0003575,60]
[391981707,1761053442078,-185.935621,0.0003576,2]
[391981708,1761053442088,-183.687843,0.0003576,2]
[391981709,1761053442097,-672.66,0.00035766,60]
[391981710,1761053442106,-672.76,0.00035866,60]
[391981711,1761053442116,-796.19226871,0.00035896,2]
[391981712,1761053442125,-1000.0,0.000359,2]
[391981713,1761053442135,-733.0115357,0.00035904,5]
[391981714,1761053442144,-151.145192,0.00036,60]
[391981715,1761053442154,-185.935621,0.00036,60]
[391981716,1761053442163,-183.687843,0.00036,60]
[391981717,1761053442173,-6521.3266162,0.00036164,3]
[391981718,1761053442183,-151.0,0.000362,11]
[391981719,1761053442194,-203.45999339,0.0003621,2]
[391981720,1761053442205,-264.64467887,0.0003624,2]
[391981721,1761053442215,-185.935621,0.0003625,60]
[391981722,1761053442225,-183.687843,0.0003625,60]
[391981723,1761053442235,-825.65138265,0.00036444,2]
[391981724,1761053442245,-1292.0,0.00036467,120]
[391981725,1761053442255,-1814.05326908,0.000365,120]
[391981726,1761053442264,-1000.0,0.000365,2]
[391981727,1761053442274,-185.935621,0.000365,60]
[391981728,1761053442283,-183.687843,0.000365,60]
[391981729,1761053442293,-154.946351,0.000365,60]
[391981730,1761053442303,-433.90871992,0.000365,120]
[391981731,1761053442313,-181.09763267,0.000365,120]
[391981732,1761053442322,-254.87804065,0.000365,120]
[391981733,1761053442331,-548.69900351,0.000365,120]
[391981734,1761053442341,-1612.77578802,0.000365,120]
[391981735,1761053442351,-545.96943703,0.000365,120]
[391981736,1761053442360,-159.297957,0.000365,60]
[391981737,1761053442370,-1361.56,0.000365,7]
[391981738,1761053442379,-168.0,0.00036506,2]
[391981739,1761053442389,-328.39,0.00036666,2]
[391981740,1761053442398,-2070.16096724,0.00036779,2]
[391981741,1761053442407,-1000.0,0.000368,2]
[391981742,1761053442417,-202.21450096,0.00036822,2]
[391981743,1761053442426,-1606.06,0.000369,14]
[391981744,1761053442435,-168.0,0.0003697,2]
[391981745,1761053442445,-151.0,0.00037,17]
[391981746,1761053442454,-1115.73404669,0.00037,7]
[391981747,1761053442463,-1152.0,0.00037,2]
[391981748,1761053442473,-168.0,0.00037002,2]
[391981749,1761053442482,-168.0,0.00037045,2]
[391981750,1761053442491,-160.0,0.00037051,3]
[391981751,1761053442501,-1000.0,0.000371,2]
[391981752,1761053442510,-168.0,0.00037105,2]
[391981753,1761053442519,-1065.0,0.00037155,120]
[391981754,1761053442528,-1065.0,0.0003717,7]
[391981755,1761053442538,-1000.0,0.000374,2]
[391981756,1761053442547,-11127.31365814,0.000374,15]
[391981757,1761053442558,-205.808469,0.000374,2]
[391981758,1761053442567,-185.935621,0.0003743,20]
[391981759,1761053442577,-183.687843,0.0003743,20]
[391981760,1761053442586,-500.0,0.00037444,14]
[391981761,1761053442596,-500.0,0.00037444,14]
[391981762,1761053442605,-19933.0,0.000375,2]
[391981763,1761053442614,-2000.00736557,0.000375,60]
[391981764,1761053442623,-6521.3266162,0.0003759,3]
[391981765,1761053442633,-1814.05326908,0.000376,120]
[391981766,1761053442642,-403.05172659,0.000376,120]
[391981767,1761053442652,-417.15472785,0.000376,120]
[391981768,1761053442663,-185.935621,0.000376,10]
[391981769,1761053442672,-183.687843,0.000376,10]
[391981770,1761053442682,-433.90871992,0.000376,120]
[391981771,1761053442692,-254.87804065,0.000376,120]
[391981772,1761053442701,-548.69900351,0.000376,120]
[391981773,1761053442711,-545.96943703,0.000376,120]
[391981774,1761053442721,-1612.77578802,0.000376,120]
[391981775,1761053442730,-302.28814601,0.00037736,2]
[391981776,1761053442739,-168.0,0.00037767,2]
[391981777,1761053442748,-151.0,0.000378,11]
[391981778,1761053442761,-1014.76025187,0.000378,2]
[391981779,1761053442770,-1511.45192,0.00037873,2]
[391981780,1761053442779,-185.935621,0.00037873,2]
[391981781,1761053442788,-183.687843,0.00037873,2]
[391981782,1761053442797,-1361.56,0.000379,7]
[391981783,1761053442809,-1111.0,0.00038,7]
[391981784,1761053442818,-207.34712528,0.00038,7]
[391981785,1761053442827,-2262.86416799,0.00038,30]
[391981786,1761053442837,-1252.39,0.000381,14]
[391981787,1761053442846,-168.0,0.0003814,7]
[391981788,1761053442857,-2164.0,0.00038151,2]
[391981789,1761053442867,-437.85,0.0003826,2]
[391981790,1761053442876,-1292.0,0.00038354,2]
[391981791,1761053442886,-200.0,0.000384,120]
[391981792,1761053442896,-168.0,0.00038478,2]
[391981793,1761053442906,-1292.0,0.00038529,7]
[391981794,1761053442916,-2070.16096724,0.00038539,2]
[391981795,1761053442926,-199.0,0.0003859,49]
[391981796,1761053442935,-151.0,0.000386,18]
[391981797,1761053442944,-168.0,0.00038617,7]
[391981798,1761053442954,-168.0,0.00038672,2]
[391981799,1761053442969,-150.0,0.00038691,5]
[391981800,1761053442980,-168.0,0.00038692,2]
[391981801,1761053442990,-1814.05326908,0.000387,120]
[391981802,1761053443001,-168.0,0.00038777,2]
[391981803,1761053443011,-44738.57466775,0.0003879,3]
[391981804,1761053443027,-910.71164565,0.0003879,3]
[391981805,1761053443040,-291.34175926,0.00038795,7]
[391981807,1761053443049,-9658.94659509,0.000388,2]
[391981838,1761053555645,-14527.96323302,0.00033712,2]
[391981839,1761053555657,-2868.359588,0.00033712,2]
[391981840,1761053555669,-4867.82146814,0.00033712,2]
[391981841,1761053556327,150.0,0.00023275,30]
[391981842,1761053556393,-150.0,0.00024383,30]
[391981843,1761053556419,-65.0,0.00025492,30]
[391981844,1761053557496,150.0,0.0002144,30]
[391981845,1761053615277,-2500.0,0.00024953,2]
[391981846,1761053616386,-2500.0,0.00024953,2]
[391981847,1761053650096,-2130.0,0.00024953,2]
[391981848,1761053703203,53893.52246484,0.00034696,60]
[391981849,1761053752594,417.15472785,0.00024072,2]
[391981850,1761053788074,-1200.0,0.00024456,2]
[391981851,1761053788892,-1200.0,0.00024456,2]
[391981852,1761053789890,-1200.0,0.00024456,2]
[391981853,1761053821003,-350.0,0.00025,30]
[391981854,1761053843607,5000.0,0.00024072,2]
[391981855,1761053866542,5000.0,0.00024072,2]
[391981856,1761053880980,0.01,0.00015984,15]
[391981857,1761053881003,199.09,0.00015984,15]
[391981858,1761053881251,199.1,0.00015984,15]
[391981859,1761053890062,5000.0,0.00024072,2]
[391981860,1761053912921,4601.82,0.00024072,2]
[391981861,1761053912945,398.18,0.00024072,2]
[391981862,1761053921631,5000.0,0.00024072,2]
[391981863,1761053930869,498.84045099,0.00024072,2]
[391981864,1761053939053,4102.98954901,0.00024072,2]
[391981865,1761053939077,897.01045099,0.00024072,2]
[391981866,1761053948183,5000.0,0.00024072,2]
[391981867,1761053965292,4102.99954901,0.00024072,2]
[391981868,1761053965316,897.00045099,0.00024072,2]
[391981869,1761053977952,357.50106,0.00024072,2]
[391981870,1761053995531,5000.0,0.00024072,2]
[391981871,1761054004221,3745.50848901,0.00024072,2]
[391981872,1761054004248,38.37649287,0.00024072,2]
[391981873,1761054020713,5000.0,0.00024072,2]
[391981874,1761054046591,4961.63350713,0.00024072,2]
[391981875,1761054046614,38.36649287,0.00024072,2]
[391981876,1761054070743,5000.0,0.00024072,2]
[391981877,1761054090322,196.0,0.00016,2]
[391981878,1761054090523,196.0,0.0001635,2]
[391981879,1761054090757,196.0,0.000167,2]
[391981880,1761054090981,196.0,0.0001705,2]
[391981881,1761054091232,196.0,0.000174,2]
[391981882,1761054091419,196.0,0.0001775,2]
[391981883,1761054091635,385.67480909,0.000181,2]
[391981884,1761054094400,3399.96869804,0.00024072,2]
[391981885,1761054094425,1600.03130196,0.00024072,2]
[391981886,1761054118135,5000.0,0.00024072,2]
[391981887,1761054141145,5000.0,0.00024072,2]
[391981888,1761054164841,0.01,0.00024072,2]
[391981889,1761054164867,4999.99,0.00024072,2]
[391981891,1761054187715,150.0,0.00020782,30]
[391981892,1761054188193,150.0,0.00021771,30]
[391981893,1761054188643,212.82,0.00022761,30]
[391981894,1761054189071,4487.2,0.00024072,2]
[391981895,1761054189099,512.8,0.00024072,2]
[391981896,1761054189133,283.76,0.00023751,30]
[391981909,1761054213292,3545.62070836,0.00024072,2]
[391981910,1761054270303,150.0,0.00020783,30]
[391981911,1761054270760,150.0,0.00021773,30]
[391981912,1761054271249,199.79,0.00022762,30]
[391981913,1761054271711,266.38,0.00023752,30]
[391981914,1761054287246,2262.86416898,0.00024,2]
[391981915,1761054295029,2628.79512266,0.00024072,2]
[391981916,1761054295054,7371.20487734,0.00024072,2]
[391981917,1761054295383,-332.0,0.00024742,30]
[391981918,1761054303822,2628.80512266,0.00024072,2]
[391981919,1761054303844,7371.19487734,0.00024072,2]
[391981920,1761054309321,1000.0,0.00034695,120]
[391981921,1761054311552,10000.0,0.00024072,2]
[391981922,1761054312966,274.15,0.00024025,6]
[391981923,1761054329284,6245.7,0.00024072,2]
[391981924,1761054331922,196.0,0.00016,2]
[391981925,1761054332135,196.0,0.00016525,2]
[391981926,1761054332355,196.0,0.0001705,2]
[391981927,1761054332617,196.0,0.00017575,2]
[391981928,1761054332823,225.08374045,0.000181,2]
[391981929,1761054352372,150.0,0.00023393,30]
[391981930,1761054354527,-150.0,0.00024507,30]
[391981931,1761054354554,-200.0,0.00025,30]
[391981932,1761054371978,-150.0,0.00025,30]
[391981933,1761054401098,-150.0,0.0002452,2]
[391981934,1761054401121,-85.79560278,0.0002502,2]
[391981935,1761054436493,150.0,0.00020711,30]
[391981936,1761054436970,150.0,0.00021697,30]
[391981937,1761054437429,176.91,0.00022684,30]
[391981938,1761054438225,235.88,0.0002367,30]
[391981939,1761054450443,196.0,0.00016,2]
[391981940,1761054450656,196.0,0.0001621,2]
[391981941,1761054450859,196.0,0.0001642,2]
[391981942,1761054451072,196.0,0.0001663,2]
[391981943,1761054451285,196.0,0.0001684,2]
[391981944,1761054451469,196.0,0.0001705,2]
[391981945,1761054451667,196.0,0.0001726,2]
[391981946,1761054451869,196.0,0.0001747,2]
[391981947,1761054452077,196.0,0.0001768,2]
[391981948,1761054452281,196.0,0.0001789,2]
[391981949,1761054452517,324.85418702,0.000181,2]
[391981950,1761054494263,-294.84,0.00024656,30]
[391981951,1761054519034,0.16,0.00020719,30]
[391981952,1761054519064,149.84,0.00020719,30]
[391981953,1761054519588,150.0,0.00021706,30]
[391981954,1761054520381,160.42,0.00022693,30]
[391981955,1761054528601,7000.00000018,0.00034692,120]
[391981956,1761054538999,-213.89,0.00023679,30]
[391981957,1761054549552,-267.36,0.00024666,30]
[391981958,1761054570078,-78.75405295,0.0002502,2]
[391981959,1761054570101,-186.55801353,0.0002512,2]
[391981960,1761054570124,-320.84,0.00025652,30]
[391981961,1761054570146,-366.16726863,0.00026463,2]
[391981962,1761054570173,-374.31,0.00026639,30]
[391981963,1761054570195,-215.135526,0.000269,20]
[391981964,1761054570217,-165.319059,0.000269,20]
[391981965,1761054570238,-403.05172659,0.00027351,2]
[391981966,1761054570259,-409.84556529,0.00027508,2]
[391981967,1761054570284,-427.78,0.00027626,30]
[391981968,1761054570306,-300.0,0.00027755,2]
[391981969,1761054570327,-1720.86229671,0.00027756,2]
[391981970,1761054590257,3011.12,0.00022,10]
[391981971,1761054598370,150.0,0.00021845,30]
[391981972,1761054598807,150.0,0.00022885,30]
[391981973,1761054614498,-150.0,0.00023925,30]
[391981974,1761054620489,762.555276,0.00013699,2]
[391981975,1761054620738,762.555276,0.00020187,2]